bitfinex-derivatives/quotes_ETHF0:USTF0_20250709
["timestamp","ask_amount","ask_price","bid_price","bid_amount"]
[1752030842669,0.6956,2598.8,2598.7,1.41004]
[1752030842968,1.4447,2598.9,2598.8,0.76941]
[1752030843364,2.1403,2598.9,2598.8,0.6406]
[1752030843560,2.1403,2598.9,2598.7,0.76942]
[1752030843768,2.1403,2598.9,2598.8,1.41001]
[1752030843969,2.1403,2598.9,2598.8,0.6406]
[1752030844573,3.1027,2598.9,2598.8,0.6406]
[1752030844964,2.1403,2598.9,2598.8,0.6406]
[1752030846164,1.4447,2598.9,2598.8,1.41001]
[1752030846669,2.1403,2598.9,2598.8,1.41001]
[1752030846868,0.6956,2598.9,2598.8,2.39071]
[1752030847169,1.46498,2598.9,2598.8,2.39071]
[1752030847569,1.46498,2598.9,2598.8,0.6406]
[1752030849173,0.76944,2598.7,2598.6,3.8578]
[1752030849470,2.23238318,2598.7,2598.6,2.06007]
[1752030849771,2.47631115,2598.9,2598.6,4.14970978]
[1752030849974,2.21315479,2598.8,2598.7,1.37074978]
[1752030850164,2.13934479,2598.8,2598.7,2.99202814]
[1752030850365,1.44374479,2598.8,2598.7,2.99202814]
[1752030850669,2.13934479,2598.8,2598.7,2.99202814]
[1752030850864,2.13934479,2598.8,2598.7,4.29487731]
[1752030851767,1.44374479,2598.8,2598.7,4.29487731]
[1752030852071,1.44374479,2598.8,2598.7,8.77977731]
[1752030852568,1.44374479,2598.8,2598.7,7.36973731]
[1752030852771,0.00576868,2599.0,2598.9,0.76938]
[1752030852975,0.00576868,2599.0,2598.9,3.69352917]
[1752030853169,0.70136868,2599.0,2598.9,2.71282917]
[1752030853369,0.00576868,2599.0,2598.9,3.35732917]
[1752030853673,0.70136868,2599.0,2598.9,3.35732917]
[1752030853869,0.70136868,2599.0,2598.9,2.05448]
[1752030854070,1.47071868,2599.0,2598.9,2.05448]
[1752030854273,1.47071868,2599.0,2598.9,1.2851]
[1752030854575,1.47071868,2599.0,2598.9,1.41388]
[1752030854767,0.70136868,2599.0,2598.9,2.05448]
[1752030854967,1.47071868,2599.0,2598.9,2.05448]
[1752030855169,0.00576868,2599.0,2598.9,3.03518]
[1752030855372,0.00576868,2599.0,2598.9,4.30098]
[1752030855565,0.00576868,2599.0,2598.9,3.65648]
[1752030856872,0.00576868,2599.0,2598.8,3.60884092]
[1752030857072,0.63556868,2599.0,2598.9,1.42538]
[1752030857272,0.63556868,2599.0,2598.9,0.76938]
[1752030857470,1.40491868,2599.0,2598.8,2.30599175]
[1752030857674,1.40491868,2599.0,2598.9,1.42538]
[1752030857876,1.40491868,2599.0,2598.9,0.76938]
[1752030858077,1.40491868,2599.0,2598.9,1.42538]
[1752030858478,1.40491868,2599.0,2598.9,3.73137175]
[1752030858981,0.63556868,2599.0,2598.9,3.73137175]
[1752030859171,1.40491868,2599.0,2598.9,3.73137175]
[1752030859778,1.40491868,2599.0,2598.9,2.96199175]
[1752030860578,0.76938,2598.9,2598.8,2.30599175]
[1752030860780,0.76938,2598.9,2598.8,0.76941]
[1752030860977,0.76938,2598.9,2598.8,1.42541]
[1752030861173,0.76941,2598.8,2598.7,3.97722]
[1752030861380,1.58636868,2599.0,2598.9,0.76938]
[1752030861683,1.58636868,2599.0,2598.9,2.30646303]
[1752030861684,2.35573868,2599.0,2598.9,2.30646303]
[1752030862282,1.40493868,2599.0,2598.9,0.656]
[1752030862484,1.40493868,2599.0,2598.9,0.76938]
[1752030862680,0.63556868,2599.0,2598.9,0.76938]
[1752030862982,0.63556868,2599.0,2598.9,3.73184303]
[1752030863782,0.00576868,2599.0,2598.9,4.15395698]
[1752030864376,0.00576868,2599.0,2598.9,4.92333698]
[1752030864781,0.00576868,2599.0,2598.9,4.46342917]
[1752030865182,0.00576868,2599.0,2598.9,5.83742917]
[1752030865381,0.00576868,2599.0,2598.9,4.91397268]
[1752030865584,0.00576868,2599.0,2598.9,5.56997268]
[1752030865784,0.00576868,2599.0,2598.9,4.79412917]
[1752030866679,0.00576868,2599.0,2598.9,4.02474917]
[1752030866884,0.00576868,2599.0,2598.9,4.79412917]
[1752030867589,0.00576868,2599.0,2598.9,3.40893745]
[1752030869489,0.00576868,2599.0,2598.9,7.98303165]
[1752030869981,0.00576868,2599.0,2598.9,8.72983165]
[1752030870182,0.9508,2599.8,2599.4,1.92309]
[1752030870486,0.6621,2599.7,2599.6,2.07201917]
[1752030870681,4.1586,2600.1,2600.0,0.76905]
[1752030870878,6.21952,2600.1,2599.9,2.49806226]
[1752030871080,1.71985,2600.0,2599.8,0.76909]
[1752030871286,1.71985,2600.0,2599.9,2.49710351]
[1752030871287,0.9508,2600.0,2599.9,2.49710351]
[1752030871490,3.8699,2600.1,2600.0,0.76905]
[1752030871694,1.2919,2600.1,2600.0,2.4970345]
[1752030871895,1.2919,2600.1,2600.0,3.1530345]
[1752030872198,1.2919,2600.1,2600.0,2.4970345]
[1752030872402,1.2919,2600.1,2600.0,0.76905]
[1752030872595,1.2919,2600.1,2600.0,1.42505]
[1752030872795,1.2919,2600.1,2600.0,4.45588367]
[1752030873398,1.2919,2600.1,2600.0,1.42505]
[1752030873591,1.2919,2600.1,2600.0,0.656]
[1752030873795,1.2919,2600.1,2600.0,3.1530345]
[1752030874996,2.06092,2600.1,2600.0,3.1530345]
[1752030875500,1.2919,2600.1,2600.0,1.42505]
[1752030875700,0.6621,2600.1,2600.0,0.76905]
[1752030875898,2.2427,2600.1,2600.0,1.42505]
[1752030876097,2.2427,2600.1,2600.0,0.76905]
[1752030876399,2.2427,2600.1,2600.0,1.42505]
[1752030876400,3.01172,2600.1,2600.0,1.42505]
[1752030876797,2.2427,2600.1,2600.0,1.42505]
[1752030877000,3.01172,2600.1,2600.0,1.42505]
[1752030877502,4.31456917,2600.1,2600.0,0.656]
[1752030877702,4.31456917,2600.1,2600.0,1.42505]
[1752030877902,4.31456917,2600.1,2600.0,3.1530345]
[1752030878202,4.31456917,2600.1,2600.0,1.42505]
[1752030878502,3.54554917,2600.1,2600.0,0.76905]
[1752030878891,5.60456917,2600.1,2600.0,0.76905]
[1752030879098,0.76908,2599.9,2599.8,4.22825876]
[1752030879299,2.70172917,2599.9,2599.8,4.22825876]
[1752030879495,0.76911,2599.8,2599.7,4.22829876]
[1752030879698,3.00991,2599.8,2599.7,3.45916876]
[1752030879900,6.84751,2599.8,2599.7,3.45916876]
[1752030880100,0.76914,2599.7,2599.5,0.76918]
[1752030880304,0.76919,2599.6,2599.5,0.76919]
[1752030880604,2.34979,2599.6,2599.5,0.76919]
[1752030880798,3.72989,2599.6,2599.5,0.76919]
[1752030881194,2.9607,2599.6,2599.5,0.76919]
[1752030882404,3.72987,2599.6,2599.5,0.76919]
[1752030883907,3.72987,2599.6,2599.5,4.21652156]
[1752030884901,2.9607,2599.6,2599.5,4.21653156]
[1752030885412,0.6298,2599.6,2599.5,4.21653156]
[1752030885608,0.6298,2599.6,2599.5,4.87253156]
[1752030885907,0.6298,2599.6,2599.5,4.21653156]
[1752030886108,0.6298,2599.6,2599.5,4.84903156]
[1752030886309,0.6298,2599.6,2599.5,4.21653156]
[1752030886502,1.5806,2599.6,2599.5,4.84903156]
[1752030887601,2.08485422,2599.6,2599.5,0.60111704]
[1752030887803,3.38770339,2599.6,2599.5,0.60111704]
[1752030888005,4.64880339,2599.6,2599.5,0.60111704]
[1752030888309,0.76923,2599.4,2599.3,3.44733156]
[1752030888607,5.93827917,2599.4,2599.3,3.44733156]
[1752030889702,6.90857917,2599.4,2599.3,3.44733156]
[1752030890007,0.76926,2599.3,2599.2,0.76929]
[1752030890202,2.68316,2599.3,2599.2,0.76929]
[1752030890402,3.65346,2599.3,2599.2,0.76929]
[1752030890809,2.8842,2599.3,2599.2,0.76929]
[1752030891002,0.6584,2599.3,2599.2,1.40179]
[1752030891508,0.6584,2599.3,2599.2,0.76929]
[1752030891509,1.2879,2599.3,2599.2,0.76929]
[1752030891705,1.2879,2599.3,2599.2,1.40179]
[1752030892208,3.02746,2599.3,2599.2,1.40179]
[1752030892805,4.33030917,2599.3,2599.2,0.76929]
[1752030893007,0.7693,2599.2,2599.1,0.7693]
[1752030893203,2.7848,2599.2,2599.1,0.7693]
[1752030893403,3.7551,2599.2,2599.1,0.7693]
[1752030893808,3.7551,2599.2,2599.1,3.0700776]
[1752030894004,3.7551,2599.2,2599.1,2.3007776]
[1752030894510,3.7551,2599.2,2599.1,2.9332776]
[1752030894511,1.4277,2599.2,2599.1,2.9332776]
[1752030894811,2.398,2599.2,2599.1,2.9332776]
[1752030895009,2.398,2599.2,2599.1,3.7025976]
[1752030895204,3.7551,2599.2,2599.1,2.9332776]
[1752030895509,3.7551,2599.2,2599.1,0.6325]
[1752030895809,3.7551,2599.2,2599.1,1.72565769]
[1752030897004,8.7551,2599.2,2599.1,1.72565769]
[1752030897709,8.7551,2599.2,2599.0,2.3007776]
[1752030897710,0.76932,2599.1,2599.0,2.3007776]
[1752030897909,6.62886917,2599.1,2599.0,2.3007776]
[1752030898105,8.25756917,2599.1,2599.0,2.3007776]
[1752030898601,13.25756917,2599.1,2599.0,2.3007776]
[1752030898807,54.05756917,2599.1,2599.0,2.3007776]
[1752030899308,0.76935,2599.0,2598.9,2.3007776]
[1752030899504,5.08749917,2599.0,2598.9,2.3007776]
[1752030899812,0.76938,2598.9,2598.8,3.44733156]
[1752030900104,0.76941,2598.8,2598.7,3.45310024]
[1752030900408,6.90875917,2598.8,2598.7,4.04590014]
[1752030900616,13.29535917,2598.8,2598.7,0.59856858]
[1752030900800,13.29535917,2598.8,2598.7,0.59854111]
[1752030901000,13.29535917,2598.8,2598.6,3.44733156]
[1752030901205,0.76956,2598.3,2598.2,4.5740942]
[1752030901504,6.90890917,2598.3,2598.2,4.5740942]
[1752030901804,0.76959,2598.2,2598.1,4.5740942]
[1752030902006,1.42799,2598.2,2598.1,4.5740942]
[1752030902204,2.73083917,2598.2,2598.1,4.5740942]
[1752030902403,2.73083917,2598.2,2598.1,5.2065942]
[1752030902712,3.70113917,2598.2,2598.1,5.2065942]
[1752030903107,1.42799,2598.2,2598.1,0.6325]
[1752030903406,0.76971,2597.8,2597.7,4.5740942]
[1752030903606,2.73095917,2597.8,2597.7,5.2065942]
[1752030903806,3.70125917,2597.8,2597.7,4.5740942]
[1752030904207,3.70125917,2597.8,2597.7,5.2065942]
[1752030904512,5.28030917,2598.0,2597.8,0.76969]
[1752030904719,5.93870917,2598.0,2597.9,0.6325]
[1752030905207,0.76968,2597.9,2597.8,0.76969]
[1752030905514,5.16904917,2598.0,2597.9,0.76968]
[1752030905515,3.2078,2598.0,2597.9,0.76968]
[1752030905911,3.8662,2598.0,2597.9,1.40218]
[1752030906110,3.2078,2598.0,2597.9,1.40218]
[1752030906317,3.8662,2598.0,2597.9,1.40218]
[1752030906508,3.2078,2598.0,2597.9,3.698302]
[1752030906918,5.28020917,2598.3,2597.9,3.957022]
[1752030907111,5.28020917,2598.3,2598.1,1.72203877]
[1752030907310,5.28020917,2598.3,2597.9,2.928622]
[1752030907311,0.76962,2598.1,2598.0,1.72203877]
[1752030907611,2.73086917,2598.1,2598.0,2.35453877]
[1752030908516,2.73086917,2598.1,2598.0,0.6325]
[1752030909415,2.07246917,2598.1,2598.0,0.6325]
[1752030909819,2.73086917,2598.1,2598.0,0.6325]
[1752030910012,0.76968,2597.9,2597.8,0.76969]
[1752030910216,1.42808,2597.9,2597.8,1.40219]
[1752030910613,1.42808,2597.9,2597.8,2.77959]
[1752030910812,0.6584,2597.9,2597.8,2.77959]
[1752030911516,1.30284917,2598.1,2597.8,2.77959]
[1752030911517,0.76963,2598.1,2597.9,0.76968]
[1752030911711,0.76963,2598.1,2598.0,2.76015]
[1752030911914,1.42803,2598.1,2598.0,3.78855]
[1752030912522,1.42803,2598.1,2598.0,1.9905]
[1752030912714,1.42803,2598.1,2598.0,0.6325]
[1752030913116,1.42803,2598.1,2598.0,1.23401063]
[1752030915823,1.42803,2598.1,2598.0,2.00366063]
[1752030916221,1.42803,2598.1,2598.0,1.23401063]
[1752030916918,1.42803,2598.1,2598.0,3.32536063]
[1752030917117,2.73087917,2598.1,2598.0,2.55571063]
[1752030917727,2.73087917,2598.1,2598.0,1.23401063]
[1752030917928,2.73087917,2598.1,2598.0,2.00366063]
[1752030918124,1.30284917,2598.1,2598.0,1.37116063]
[1752030918319,0.76959,2598.2,2598.1,0.76959]
[1752030918521,0.76959,2598.2,2598.1,3.33010063]
[1752030918722,1.40029,2598.2,2598.1,3.33010063]
[1752030918928,3.2078,2598.3,2598.2,0.76959]
[1752030919128,4.60806,2598.3,2598.2,0.60151063]
[1752030920920,3.97736,2598.3,2598.2,1.37110063]
[1752030921127,5.91090917,2598.3,2598.2,0.60151063]
[1752030922828,5.91090917,2598.3,2598.2,1.28401063]
[1752030923426,5.28020917,2598.3,2598.2,1.28401063]
[1752030923626,5.91090917,2598.3,2598.2,2.05360063]
[1752030923827,5.91090917,2598.3,2598.2,1.28401063]
[1752030924028,6.92690917,2598.3,2598.2,1.28401063]
[1752030924228,5.91090917,2598.3,2598.2,1.28401063]
[1752030924429,6.92690917,2598.3,2598.2,1.28401063]
[1752030925431,6.92690917,2598.3,2598.2,3.0060494]
[1752030925631,6.92690917,2598.3,2598.2,2.3235494]
[1752030925931,6.92690917,2598.3,2598.2,1.28401063]
[1752030926130,6.92690917,2598.3,2598.2,0.60151063]
[1752030926331,38.22890917,2598.3,2598.2,0.60151063]
[1752030927434,39.38331917,2598.3,2597.8,1.72203877]
[1752030927734,5.28032917,2597.9,2597.8,1.72203877]
[1752030927933,6.46502988,2597.9,2597.8,1.72203877]
[1752030928530,37.00034988,2597.9,2597.6,3.44400468]
[1752030928831,37.00034988,2597.9,2596.8,3.2078]
[1752030928832,3.2078,2597.0,2594.8,37.6151463]
[1752030929031,0.77039,2595.5,2594.8,35.3830463]
[1752030929225,30.47819,2595.5,2595.4,19.0330847]
[1752030929431,3.2078,2595.5,2595.4,20.0087847]
[1752030929832,3.97819,2595.5,2595.4,1.6582]
[1752030930136,1.92606,2595.4,2594.4,3.2078]
[1752030930432,0.7706,2594.8,2594.4,2.07354917]
[1752030930631,3.2078,2595.0,2594.7,0.6825]
[1752030930832,0.77056,2594.9,2594.8,2.3081]
[1752030931135,0.77056,2594.9,2594.8,1.3324]
[1752030931336,3.2078,2595.3,2594.8,9.69365178]
[1752030931634,2.71875178,2595.2,2594.9,0.9757]
[1752030931834,2.71875178,2595.2,2594.9,0.6825]
[1752030931835,2.71875178,2595.0,2594.9,0.6825]
[1752030932034,3.48928178,2595.0,2594.9,1.6582]
[1752030932234,0.77065,2594.6,2594.5,0.9757]
[1752030932431,6.69720178,2594.6,2594.5,1.6582]
[1752030933134,1.92671,2594.5,2593.9,0.9757]
[1752030933334,5.92655178,2594.0,2593.6,0.18559795]
[1752030933535,3.2078,2593.7,2593.6,0.18559795]
[1752030934035,3.2078,2593.7,2593.6,1.16129795]
[1752030934442,3.97872,2593.7,2593.6,1.16129795]
[1752030934642,3.97872,2593.7,2593.6,0.18559795]
[1752030935041,0.77106,2593.3,2593.1,0.9757]
[1752030935237,3.2078,2593.3,2593.2,0.9757]
[1752030936342,3.2078,2593.3,2593.2,1.74677]
[1752030936634,3.2078,2593.6,2593.5,0.77098]
[1752030936839,3.2078,2594.2,2593.5,0.9757]
[1752030937040,5.50984766,2594.9,2594.7,0.77061]
[1752030937237,5.50984766,2594.9,2594.7,0.9757]
[1752030937442,3.44744786,2594.8,2594.4,0.9757]
[1752030937742,2.25665702,2594.6,2594.5,1.74638]
[1752030937948,2.25665702,2594.7,2594.6,0.77065]
[1752030938236,2.25665702,2594.7,2594.6,1.74635]
[1752030938638,2.25665702,2594.7,2594.4,0.77069]
[1752030938839,2.25665702,2594.7,2594.5,0.9757]
[1752030939043,3.02729702,2594.7,2594.3,0.9757]
[1752030939233,5.92655178,2594.6,2594.3,0.77072]
[1752030939434,8.1832088,2594.6,2594.4,0.5573272]
[1752030939634,5.92655178,2594.6,2594.5,0.55732234]
[1752030940140,3.2078,2594.6,2594.5,0.55732234]
[1752030940443,3.97845,2594.6,2594.5,0.55732234]
[1752030940640,3.2078,2594.6,2594.5,0.55732234]
[1752030940841,6.65524786,2594.6,2594.5,0.55732234]
[1752030941041,3.2078,2594.6,2594.5,0.55732234]
[1752030941442,3.2078,2594.6,2594.5,2.30370234]
[1752030941641,6.58023784,2594.6,2594.5,0.55732234]
[1752030941845,3.2078,2594.6,2594.5,0.55732234]
[1752030942145,3.97845,2594.6,2594.5,0.55732234]
[1752030942542,3.2078,2594.6,2594.5,0.55732234]
[1752030942743,3.2078,2594.6,2594.5,1.32800234]
[1752030942943,3.97845,2594.6,2594.5,0.55732234]
[1752030943252,3.2078,2594.6,2594.5,0.55732234]
[1752030943545,6.06375583,2594.6,2594.5,0.55732234]
[1752030943748,5.29310583,2594.6,2594.5,0.55732234]
[1752030943944,5.29310583,2594.6,2594.5,2.30370234]
[1752030944343,2.08530583,2594.6,2594.5,2.98620234]
[1752030944540,4.33098206,2594.6,2594.5,7.98620234]
[1752030944742,1.38870583,2594.6,2594.5,7.98620234]
[1752030944942,3.63438206,2594.6,2594.5,9.32010234]
[1752030945138,1.38870583,2594.6,2594.5,9.28175637]
[1752030946544,1.38870583,2594.6,2594.5,4.28175637]
[1752030946750,1.38870583,2594.6,2594.5,9.28175637]
[1752030947151,2.24567623,2594.9,2594.8,0.77059]
[1752030947351,3.36800626,2595.2,2595.1,0.7705]
[1752030947549,4.59659715,2595.4,2595.3,0.77043]
[1752030947745,4.59659715,2595.4,2595.3,1.28940637]
[1752030947949,4.59659715,2595.5,2595.4,0.77041]
[1752030948151,4.59659715,2595.5,2595.4,1.28910131]
[1752030948450,0.77022,2596.1,2595.9,0.77026]
[1752030948655,0.77031,2595.8,2595.6,0.77034]
[1752030949049,7.70284983,2596.2,2595.5,0.77037]
[1752030949253,0.77034,2595.7,2595.6,0.51874515]
[1752030949452,0.77031,2595.8,2595.6,0.51874515]
[1752030949652,0.77031,2595.8,2595.6,1.027]
[1752030949955,0.77032,2595.8,2595.7,1.027]
[1752030950155,0.77028,2595.9,2595.7,2.31621179]
[1752030950360,0.7703,2595.8,2595.7,0.51889179]
[1752030950662,0.7703,2595.8,2595.7,1.027]
[1752030951162,0.77037,2595.6,2595.4,5.00521]
[1752030951357,0.77037,2595.6,2595.4,3.97821]
[1752030951554,0.77037,2595.6,2595.5,1.027]
[1752030952356,1.92575,2595.8,2595.1,3.97829]
[1752030952562,0.77041,2595.5,2595.3,0.77043]
[1752030952952,0.77041,2595.4,2595.3,1.027]
[1752030953157,0.7704,2595.5,2595.3,1.79744]
[1752030953658,0.77041,2595.4,2595.3,1.027]
[1752030953857,0.7704,2595.5,2595.3,1.79743]
[1752030954058,0.77035,2595.7,2595.4,4.2348]
[1752030954362,1.43423,2595.7,2595.6,0.6342]
[1752030954556,0.77033,2595.7,2595.6,0.6342]
[1752030955256,1.43423,2595.7,2595.6,0.6342]
[1752030955654,0.77038,2595.5,2595.0,28.93252]
[1752030955858,0.77049,2595.2,2595.1,3.2078]
[1752030956060,0.77049,2595.2,2595.1,4.869]
[1752030956463,0.77049,2595.2,2595.1,5.6395]
[1752030956662,1.92579,2595.8,2595.1,4.869]
[1752030956967,0.77047,2595.2,2595.1,5.63949]
[1752030957462,0.77046,2595.3,2595.1,5.63949]
[1752030957661,0.77047,2595.2,2595.1,4.869]
[1752030957964,0.77047,2595.2,2595.1,3.842]
[1752030958263,1.43437,2595.2,2595.1,3.842]
[1752030958663,0.77055,2595.0,2594.9,0.77056]
[1752030958864,0.77055,2595.0,2594.9,1.40476]
[1752030959064,0.77056,2594.9,2594.8,3.2078]
[1752030959266,2.74922198,2594.9,2594.8,3.842]
[1752030959667,2.74922198,2594.9,2594.8,5.63959]
[1752030959867,2.74922198,2594.9,2594.8,4.869]
[1752030960668,2.74922198,2594.9,2594.8,5.63959]
[1752030960869,1.97866198,2594.9,2594.8,5.63959]
[1752030961168,2.74922198,2594.9,2594.8,5.63959]
[1752030961568,1.97866198,2594.9,2594.8,5.63959]
[1752030961768,2.74922198,2594.9,2594.8,5.63959]
[1752030961968,2.74922198,2594.9,2594.8,4.869]
[1752030962968,2.74922198,2594.9,2594.8,3.842]
[1752030963266,1.97866198,2594.9,2594.8,5.63959]
[1752030965465,0.77049,2595.2,2594.8,4.869]
[1752030965664,1.8392698,2595.1,2594.8,4.869]
[1752030965869,1.8392698,2595.0,2594.9,0.77056]
[1752030966061,1.8392698,2595.0,2594.9,2.43176]
[1752030967974,1.8392698,2595.0,2594.9,3.72096]
[1752030968573,0.06630374,2595.0,2594.9,8.72096]
[1752030968774,6.62163029,2595.5,2595.4,0.77041]
[1752030968964,7.28553029,2595.5,2595.4,1.40461]
[1752030969370,6.62163029,2595.5,2595.4,1.40461]
[1752030969571,3.8717,2595.5,2595.4,1.40461]
[1752030970271,3.8717,2595.5,2595.4,0.77041]
[1752030970576,3.8717,2595.5,2595.4,1.40461]
[1752030970972,3.8717,2595.5,2595.4,0.77041]
[1752030971276,0.77047,2595.3,2595.1,27.79149]
[1752030971775,0.77047,2595.3,2595.1,28.42569]
[1752030971776,0.6639,2595.2,2595.1,28.42569]
[1752030972171,3.3819421,2595.2,2595.1,0.6342]
[1752030972376,0.7705,2595.1,2595.0,27.017]
[1752030972578,2.7684,2595.1,2595.0,27.017]
[1752030972771,2.7684,2595.1,2594.8,5.00537]
[1752030972772,0.77056,2594.9,2594.8,5.00537]
[1752030973076,1.43446,2594.9,2594.8,32.67557]
[1752030973667,0.77056,2594.9,2594.8,32.67557]
[1752030973871,1.43446,2594.9,2594.8,32.67557]
[1752030974273,0.77056,2594.9,2594.8,32.67557]
[1752030974468,1.43446,2594.9,2594.8,3.842]
[1752030974674,0.6639,2594.9,2594.8,31.64359]
[1752030974874,0.6639,2594.9,2594.8,30.873]
[1752030974875,1.43446,2594.9,2594.8,30.873]
[1752030975077,1.43446,2594.9,2594.8,31.64359]
[1752030976176,1.43446,2594.9,2594.8,31.63259]
[1752030976568,2.10452,2595.1,2595.0,0.77053]
[1752030976878,0.77052,2595.1,2595.0,1.7029]
[1752030977476,1.42992,2595.1,2595.0,1.7029]
[1752030977876,1.42992,2595.1,2595.0,2.47343]
[1752030978078,2.28380134,2595.2,2595.1,0.7705]
[1752030978376,2.28380134,2595.3,2595.2,0.77047]
[1752030978574,0.77047,2595.2,2595.0,1.79981]
[1752030978774,0.7705,2595.1,2595.0,1.79981]
[1752030978979,0.77049,2595.2,2595.1,0.7705]
[1752030979380,1.42989,2595.2,2595.1,1.4464]
[1752030979580,3.05426134,2595.3,2595.1,1.4464]
[1752030979779,0.77046,2595.3,2595.1,2.4757]
[1752030980376,0.77047,2595.2,2595.1,2.4757]
[1752030980778,3.13576942,2595.2,2595.1,2.4757]
[1752030981080,3.13576942,2595.2,2595.1,1.7052]
[1752030981281,3.13576942,2595.2,2595.1,0.6759]
[1752030981481,3.13576942,2595.2,2595.1,27.6529]
[1752030981779,3.13576942,2595.2,2595.1,28.4234]
[1752030982481,3.13576942,2595.2,2595.1,1.4464]
[1752030982681,3.13576942,2595.2,2595.1,28.4134]
[1752030984682,2.36529942,2595.2,2595.1,28.4134]
[1752030986480,0.6594,2595.2,2595.1,28.4134]
[1752030986982,0.6594,2595.2,2595.1,29.4427]
[1752030987385,0.7704,2595.5,2595.4,0.7704]
[1752030987686,2.39622151,2595.5,2595.4,2.4756]
[1752030987887,2.28522151,2595.5,2595.4,1.4463]
[1752030988084,1.62582151,2595.5,2595.4,2.4756]
[1752030990281,6.6017421,2595.8,2595.7,0.77032]
[1752030990486,5.49286968,2595.8,2595.7,1.44622]
[1752030990785,5.49286968,2595.8,2595.7,2.47552]
[1752030991286,4.83346968,2595.8,2595.7,2.47552]
[1752030991486,4.83346968,2595.8,2595.7,3.10632]
[1752030991887,3.2078,2596.2,2596.1,0.77021]
[1752030992083,2.28360474,2596.2,2596.1,1.44611]
[1752030992786,3.05378474,2596.2,2596.1,0.6759]
[1752030993084,0.77022,2596.1,2595.9,28.70554]
[1752030993389,0.77023,2596.1,2596.0,0.6759]
[1752030993588,2.39337451,2596.1,2596.0,0.6759]
[1752030993786,3.05277451,2596.1,2596.0,1.44614]
[1752030994391,2.28254451,2596.1,2596.0,1.44614]
[1752030994585,3.05275451,2596.1,2596.0,0.6759]
[1752030994785,3.05275451,2596.1,2596.0,1.44614]
[1752030995089,3.05275451,2596.1,2596.0,0.6759]
[1752030995291,1.42961,2596.1,2596.0,0.6759]
[1752030995587,0.77021,2596.1,2596.0,2.47544]
[1752030995887,0.77021,2596.1,2596.0,2.47543]
[1752030996087,1.42961,2596.1,2596.0,2.47544]
[1752030996289,0.77021,2596.1,2596.0,2.47544]
[1752030996486,1.42961,2596.1,2596.0,2.47544]
[1752030996687,0.77021,2596.1,2596.0,2.47544]
[1752030996884,1.42961,2596.1,2596.0,2.47544]
[1752030997082,0.6594,2596.1,2596.0,2.47544]
[1752030997286,0.77018,2596.2,2596.1,0.77018]
[1752030997484,2.3918393,2596.2,2596.1,1.44608]
[1752030997691,0.77017,2596.3,2596.2,0.77018]
[1752030997881,0.7702,2596.2,2596.1,0.7702]
[1752030998081,2.38997365,2596.2,2596.1,1.4461]
[1752030998287,3.04937365,2596.2,2596.1,0.6759]
[1752030998989,4.20465365,2596.2,2595.8,3.2078]
[1752030999293,4.20465365,2596.2,2595.2,1.92613]
[1752030999294,0.77044,2595.3,2595.2,3.2078]
[1752030999482,1.42984,2595.3,2595.2,30.7487]
[1752030999683,0.77044,2595.3,2595.2,31.51917]
[1752030999884,1.42984,2595.3,2595.2,30.7507]
[1752031000189,0.77056,2594.9,2594.8,3.8616]
[1752031000492,3.4886021,2594.9,2594.8,4.5375]
[1752031000693,4.1480021,2594.9,2594.8,31.4125]
[1752031000895,3.4886021,2594.9,2594.8,31.4125]
[1752031001393,4.1480021,2594.9,2594.8,31.4125]
[1752031001692,3.4886021,2594.9,2594.8,31.4125]
[1752031002194,3.4886021,2594.9,2594.8,32.18309]
[1752031002390,4.1480021,2594.9,2594.8,31.4125]
[1752031002692,4.1480021,2594.9,2594.8,4.5375]
[1752031002893,4.1480021,2594.9,2594.8,31.4115]
[1752031003193,4.1480021,2594.9,2594.8,30.7447]
[1752031003785,0.6657,2595.2,2594.8,31.774]
[1752031004088,0.7705,2595.1,2594.9,1.0293]
[1752031004290,0.7705,2595.1,2595.0,0.6759]
[1752031004494,0.6657,2595.2,2595.1,0.7705]
[1752031004694,2.09557,2595.2,2595.1,27.5299]
[1752031004890,2.08609,2595.5,2595.3,0.77042]
[1752031005091,2.38974945,2595.4,2595.3,26.854]
[1752031005286,5.76719155,2595.4,2595.3,0.6759]
[1752031005490,4.99678155,2595.4,2595.3,27.5299]
[1752031005789,5.76719155,2595.4,2595.3,28.30034]
[1752031006490,5.76719155,2595.4,2595.3,1.44634]
[1752031006790,4.1478521,2595.4,2595.3,28.29634]
[1752031006991,3.3774421,2595.4,2595.3,28.29434]
[1752031007891,0.696,2595.7,2595.6,0.77035]
[1752031008094,5.9258421,2595.9,2595.6,0.77035]
[1752031008095,3.2078,2595.9,2595.6,53.685]
[1752031008290,1.62133629,2595.8,2595.7,0.77032]
[1752031009287,2.30903629,2595.8,2595.7,0.77032]
[1752031010796,0.6877,2595.8,2595.7,0.77032]
[1752031011395,4.8588521,2596.1,2595.7,1.6272]
[1752031011593,4.8588521,2596.1,2595.9,0.77024]
[1752031011898,0.6877,2596.0,2595.9,0.77024]
[1752031012896,4.0886421,2596.1,2596.0,0.77024]
[1752031013089,7.16599841,2596.1,2596.0,1.42374]
[1752031013288,7.16599841,2596.1,2596.0,0.77024]
[1752031013499,6.39578841,2596.1,2596.0,0.77024]
[1752031014197,6.39578841,2596.1,2596.0,1.42374]
[1752031015100,7.16599841,2596.1,2596.0,1.42374]
[1752031015300,6.39578841,2596.1,2596.0,1.42374]
[1752031015598,7.16599841,2596.1,2596.0,0.6535]
[1752031015799,6.39578841,2596.1,2596.0,1.42374]
[1752031016495,7.16599841,2596.1,2596.0,1.42374]
[1752031016896,6.39578841,2596.1,2596.0,1.42374]
[1752031017096,7.16599841,2596.1,2596.0,0.6535]
[1752031017297,7.16599841,2596.1,2596.0,1.42374]
[1752031017505,0.77027,2595.9,2595.8,53.654]
[1752031017694,4.66577,2595.9,2595.8,53.654]
[1752031018095,4.66577,2595.9,2595.3,3.97824]
[1752031018096,0.77041,2595.4,2595.3,3.97824]
[1752031018296,1.45811,2595.4,2595.3,31.43074]
[1752031018599,1.45811,2595.4,2595.3,27.4525]